fUSD/lending_fUSD_20250814
["ID","MTS","AMOUNT","RATE_DAILY","PERIOD"]
[379210232,1755189038526,-291023.8642049,0.0001998,2]
[379210233,1755189038536,-5315.52766781,0.0002,2]
[379210234,1755189038545,-7021.55799884,0.0002,2]
[379210235,1755189038554,-1502.79162726,0.0002,2]
[379210236,1755189038563,-2889.33761981,0.0002,2]
[379210237,1755189038571,-86557.8275663,0.0002,5]
[379210238,1755189038579,-3676.13007071,0.0002,20]
[379210239,1755189038588,-1269.06798003,0.0002,2]
[379210240,1755189038597,-2015.21848522,0.0002,3]
[379210241,1755189038606,-150.0,0.0002,2]
[379210242,1755189038615,-1024.18916343,0.0002,2]
[379210243,1755189038625,-1489.43744735,0.0002,2]
[379210244,1755189038634,-846.70638374,0.0002,2]
[379210245,1755189038643,-778.40738836,0.00020139,2]
[379210246,1755189038652,-333.18,0.00020187,2]
[379210247,1755189038662,-486.35406874,0.00020564,2]
[379210248,1755189038671,-155.57,0.00020678,2]
[379210249,1755189038680,-8105.42557473,0.00020766,2]
[379210250,1755189038690,-700.0,0.000209,7]
[379210251,1755189038699,-1000.0,0.00020928,2]
[379210252,1755189038708,-500.0,0.00020928,2]
[379210253,1755189038718,-1000.0,0.00020928,2]
[379210255,1755189038727,-500.0,0.00020928,2]
[379210256,1755189038736,-1200.0,0.00020998,2]
[379210257,1755189038750,-110862.86102179,0.00021,2]
[379210258,1755189038760,-1000.0,0.00021037,2]
[379210259,1755189038769,-300.0,0.00021037,2]
[379210260,1755189038778,-500.0,0.00021037,2]
[379210261,1755189038787,-500.0,0.00021479,2]
[379210262,1755189038797,-500.0,0.00021479,2]
[379210263,1755189038806,-984.1714,0.00021599,2]
[379210264,1755189038816,-8105.42557473,0.00021699,2]
[379210265,1755189038826,-595.15839323,0.00021836,2]
[379210266,1755189038835,-187.24846937,0.0002199,2]
[379210267,1755189038845,-360559.87409165,0.00022,4]
[379210268,1755189038854,-193.74,0.00022,2]
[379210269,1755189038864,-235.18018332,0.0002211,2]
[379210270,1755189038874,-3120.78109616,0.000225,2]
[379210271,1755189038883,-1722.0,0.00022556,2]
[379210272,1755189038892,-290.0,0.00022568,2]
[379210273,1755189038902,-8105.42557473,0.00022632,2]
[379210274,1755189038912,-1362.0,0.00022668,2]
[379210275,1755189038921,-252.0,0.00022681,2]
[379210276,1755189038931,-1754.0,0.00022793,2]
[379210277,1755189038941,-265.34059951,0.00022825,2]
[379210278,1755189038950,-1114.0,0.00022905,2]
[379210279,1755189038960,-616.0,0.00022905,2]
[379210280,1755189038970,-194.0,0.00022911,2]
[379210281,1755189038980,-1680.0,0.0002295,2]
[379210282,1755189038992,-21524.10125316,0.00023,2]
[379210283,1755189039002,-9852.18,0.00023368,2]
[379210284,1755189039013,-19999.99,0.00023368,2]
[379210285,1755189039023,-170.0,0.00023481,7]
[379210286,1755189039033,-2751.0,0.0002349,2]
[379210287,1755189039043,-8105.42557473,0.00023565,2]
[379210288,1755189039053,-500.0,0.00023603,2]
[379210289,1755189039062,-666.0,0.00023623,3]
[379210290,1755189039072,-500.0,0.00023671,2]
[379210291,1755189039083,-150.0,0.00023711,2]
[379210292,1755189039093,-215.52,0.00023726,2]
[379210293,1755189039102,-6766.01624109,0.00023748,3]
[379210294,1755189039112,-1500.0,0.00023756,2]
[379210295,1755189039121,-167.09779322,0.00023804,2]
[379210296,1755189039131,-1320.81,0.00023855,2]
[379210297,1755189039141,-500.0,0.00023987,2]
[379210298,1755189039153,-60575.73177408,0.00024,2]
[379210299,1755189039164,-8327.49329345,0.00024,14]
[379210300,1755189039174,-5000.00689585,0.00024,5]
[379210301,1755189039185,-29417.28411569,0.00024,2]
[379210302,1755189039195,-249.91026753,0.00024,2]
[379210303,1755189039206,-5270.068179,0.000241,2]
[379210304,1755189039216,-154.1,0.00024106,2]
[379210305,1755189039226,-1000.0,0.00024115,2]
[379210306,1755189039237,-193.74,0.00024144,2]
[379210307,1755189039248,-70938.73,0.00024174,2]
[379210308,1755189039257,-999.99,0.00024174,2]
[379210309,1755189039267,-5704.55,0.00024174,2]
[379210310,1755189039279,-1498.53,0.00024174,2]
[379210311,1755189039288,-4844.77,0.00024174,2]
[379210312,1755189039298,-9999.99,0.00024174,2]
[379210313,1755189039307,-9999.99,0.00024174,2]
[379210314,1755189039316,-150.99,0.00024174,2]
[379210316,1755189039326,-712.03,0.00024174,2]
[379210317,1755189039336,-9999.99,0.00024174,2]
[379210318,1755189039345,-8183.57,0.00024174,2]
[379210319,1755189039354,-150.99,0.00024174,2]
[379210320,1755189039363,-162.72,0.00024175,2]
[379210321,1755189039374,-3615.18567949,0.0002421,2]
[379210322,1755189039384,-206.03,0.00024215,2]
[379210323,1755189039393,-168.14,0.00024236,2]
[379210324,1755189039402,-8105.42557473,0.00024498,2]
[379210325,1755189039414,-215.52,0.00024616,2]
[379210326,1755189039423,-1133.5,0.00024632,2]
[379210327,1755189039432,-2000.0,0.00024658,15]
[379210328,1755189039442,-595.15839323,0.00024772,5]
[379210329,1755189039453,-283308.123323,0.000248,2]
[379210330,1755189039462,-304998.699512,0.000249,2]
[379210331,1755189039471,-1801.56704863,0.000249,2]
[379210332,1755189039481,-599.0,0.00024932,7]
[379210333,1755189039493,-599.0,0.00025,7]
[379210334,1755189039502,-1615.88926058,0.00025,7]
[379210335,1755189039511,-15000.0,0.0002501,2]
[379210336,1755189039521,-1498.0,0.00025083,2]
[379210337,1755189039531,-250.80361079,0.00025138,2]
[379210338,1755189039541,-168.14,0.00025236,2]
[379210339,1755189039551,-8105.42557473,0.00025431,2]
[379210340,1755189039561,-215.52,0.00025505,2]
[379210341,1755189039571,-162.72,0.00025685,2]
[379210342,1755189039581,-1529.0,0.000257,2]
[379210343,1755189039591,-1000.0,0.00025785,2]
[379210344,1755189039600,-599.0,0.0002589,7]
[379210345,1755189039610,-200.0,0.00025905,2]
[379210346,1755189039619,-160.21,0.00025905,2]
[379210347,1755189039629,-995.74,0.00025906,2]
[379210348,1755189039638,-4332.0,0.00025966,2]
[379210349,1755189039649,-250.0,0.00025997,2]
[379210350,1755189039658,-3324.17,0.00025998,2]
[379210351,1755189039667,-4419.57174433,0.00026,2]
[379210352,1755189039679,-8429.31974567,0.00026,2]
[379210354,1755189039689,-3000.0,0.00026037,2]
[379210355,1755189039698,-4331.0,0.00026141,7]
[379210356,1755189039707,-168.14,0.00026236,2]
[379210357,1755189039716,-193.74,0.00026288,7]
[379210358,1755189039726,-8105.42557473,0.00026364,2]
[379210359,1755189039736,-215.52,0.00026395,2]
[379210361,1755189039748,-26860.95241278,0.000264,2]
[379210363,1755189039758,-250.0,0.000265,2]
[379210364,1755189039767,-1000.0,0.00026505,2]
[379210366,1755189039777,-1500.0,0.000266,9]
[379210367,1755189039787,-1499.0,0.0002663,2]
[379210368,1755189039797,-500.0,0.0002663,2]
[379210370,1755189039808,-333.18,0.00026676,2]
[379210372,1755189039817,-1000.0,0.00026677,2]
[379210373,1755189039827,-5000.0,0.00026677,2]
[379210375,1755189039837,-1653.0,0.0002668,2]
[379210377,1755189039847,-1655.0,0.00026681,2]
[379210378,1755189039857,-2300.0,0.000267,9]
[379210379,1755189039867,-724.07815596,0.00026762,2]
[379210380,1755189039877,-1074.40259451,0.00026776,10]
[379210382,1755189039888,-1074.40259451,0.00026776,10]
[379210383,1755189039898,-34532.0512,0.00026777,2]
[379210384,1755189039907,-190310.13,0.00026777,2]
[379210385,1755189039917,-628.8776,0.00026777,2]
[379210386,1755189039928,-1000.0,0.00026777,2]
[379210387,1755189039937,-158.42536506,0.00026777,2]
[379210388,1755189039948,-225.7667296,0.00026789,2]
[379210389,1755189039957,-1655.0,0.00026789,2]
[379210390,1755189039967,-504.0001734,0.0002679,2]
[379210391,1755189039976,-150.0,0.00026797,2]
[379210392,1755189039986,-3100.0,0.000268,9]
[379210393,1755189040000,-2561.95,0.00026849,14]
[379210394,1755189040010,-7000.0,0.0002686,2]
[379210395,1755189040020,-7000.0,0.0002686,2]
[379210396,1755189040030,-7000.0,0.0002686,2]
[379210397,1755189040040,-1653.0,0.00026863,2]
[379210398,1755189040050,-1074.40259453,0.00026876,10]
[379210399,1755189040060,-1074.40259451,0.00026876,10]
[379210400,1755189040070,-1074.40259451,0.00026876,10]
[379210401,1755189040080,-1074.40259451,0.00026876,10]
[379210402,1755189040090,-1074.40259451,0.00026876,10]
[379210403,1755189040100,-158.42536504,0.00026876,2]
[379210404,1755189040111,-44544.33394587,0.00026877,2]
[379210405,1755189040121,-1580.71579963,0.00026877,2]
[379210406,1755189040131,-3900.0,0.000269,9]
[379210407,1755189040141,-151.0,0.00026903,7]
[379210408,1755189040151,-158.42536504,0.00026976,2]
[379210409,1755189040163,-1039.64135897,0.0002699,2]
[379210410,1755189040175,-209.74730017,0.00027,2]
[379210411,1755189040186,-253.0,0.00027,7]
[379210412,1755189040196,-387.289,0.00027003,15]
[379210413,1755189040207,-8043.919,0.00027003,15]
[379210414,1755189040217,-884.07354004,0.00027023,2]
[379210415,1755189040227,-155.1389606,0.00027039,2]
[379210416,1755189040241,-158.42536504,0.00027075,2]
[379210417,1755189040253,-724.07815597,0.00027094,2]
[379210418,1755189040264,-250000.0,0.000271,2]
[379210419,1755189040274,-839.49,0.000271,2]
[379210420,1755189040284,-2561.95,0.00027123,14]
[379210421,1755189040295,-1000.0,0.0002713,2]
[379210422,1755189040306,-7000.0,0.0002713,2]
[379210424,1755189040317,-7000.0,0.0002713,2]
[379210426,1755189040328,-7000.0,0.0002713,2]
[379210428,1755189040338,-1653.0,0.00027131,2]
[379210430,1755189040349,-1039.64135896,0.00027133,2]
[379210432,1755189040359,-884.07353999,0.00027133,2]
[379210434,1755189040369,-1027.70021846,0.00027137,2]
[379210435,1755189040378,-158.42536504,0.00027174,2]
[379210438,1755189040389,-1655.0,0.00027176,7]
[379210440,1755189040399,-599.0,0.00027185,7]
[379210443,1755189040408,-211.86673127,0.0002719,7]
[379210446,1755189040418,-162.72,0.00027196,2]
[379210448,1755189040427,-165.0,0.00027205,14]
[379210450,1755189040437,-1531.86026681,0.0002721,2]
[379210452,1755189040446,-773.3241974,0.0002721,2]
[379210454,1755189040455,-355.91977799,0.00027233,30]
[379210455,1755189040465,-2345.0,0.00027233,2]
[379210458,1755189040475,-168.14,0.00027236,2]
[379210459,1755189040484,-216.62,0.00027239,2]
[379210462,1755189040497,-884.07353999,0.00027242,2]
[379210464,1755189040507,-1074.87334325,0.00027252,2]
[379210466,1755189040516,-156.4,0.00027258,2]
[379210467,1755189040525,-1653.0,0.00027266,7]
[379210469,1755189040535,-357.33,0.00027269,2]
[379210471,1755189040545,-158.42536504,0.00027273,2]
[379210473,1755189040554,-1039.64135896,0.00027275,2]
[379210475,1755189040564,-3476.0,0.00027281,7]
[379210478,1755189040574,-160.0,0.00027284,2]
[379210479,1755189040584,-215.52,0.00027285,2]
[379210481,1755189040594,-2742.0,0.00027285,2]
[379210483,1755189040603,-1653.0,0.00027296,7]
[379210485,1755189040613,-10000.0,0.00027297,2]
[379210488,1755189040623,-8105.42557473,0.00027297,2]
[379210489,1755189040633,-757.40463782,0.00027297,2]
[379210492,1755189040643,-449.09524724,0.00027297,2]
[379210494,1755189040652,-160.0,0.000273,7]
[379210496,1755189040661,-839.47,0.000273,2]
[379210498,1755189040670,-363.40829438,0.00027337,2]
[379210500,1755189040681,-355.91977799,0.00027342,30]
[379210502,1755189040691,-30634.9366322,0.0002735,2]
[379210504,1755189040700,-884.07353999,0.00027352,2]
[379210506,1755189040709,-1122.04646803,0.00027367,2]
[379210508,1755189040719,-158.42536504,0.00027373,2]
[379210510,1755189040728,-500.0,0.00027373,2]
[379210512,1755189040738,-500.0,0.00027373,2]
[379210514,1755189040749,-500.0,0.00027373,2]
[379210516,1755189040758,-500.0,0.00027373,2]
[379210518,1755189040768,-500.0,0.00027373,2]
[379210520,1755189040777,-500.0,0.00027373,2]
[379210522,1755189040786,-500.0,0.00027373,2]
[379210524,1755189040796,-500.0,0.00027373,2]
[379210526,1755189040805,-515.69296796,0.00027373,2]
[379210528,1755189040814,-500.0,0.00027373,2]
[379210529,1755189040823,-500.0,0.00027373,2]
[379210531,1755189040832,-500.0,0.00027373,2]
[379210533,1755189040841,-500.0,0.00027373,2]
[379210535,1755189040850,-500.0,0.00027373,2]
[379210537,1755189040860,-500.0,0.00027373,2]
[379210539,1755189040869,-500.0,0.00027373,2]
[379210541,1755189040879,-169.06141551,0.00027373,2]
[379210543,1755189040888,-500.0,0.00027373,2]
[379210545,1755189040898,-162.08062459,0.00027373,2]
[379210547,1755189040908,-500.0,0.00027373,2]
[379210549,1755189040917,-500.0,0.00027373,2]
[379210551,1755189040927,-500.0,0.00027373,2]
[379210553,1755189040936,-500.0,0.00027373,2]
[379210555,1755189040946,-500.0,0.00027373,2]
[379210557,1755189040955,-323.90526316,0.00027373,2]
[379210559,1755189040965,-500.0,0.00027373,2]
[379210561,1755189040975,-500.0,0.00027373,2]
[379210563,1755189040985,-500.0,0.00027373,2]
[379210565,1755189040996,-500.0,0.00027373,2]
[379210567,1755189041005,-500.0,0.00027373,2]
[379210569,1755189041015,-500.0,0.00027373,2]
[379210571,1755189041029,-500.0,0.00027373,2]
[379210573,1755189041039,-500.0,0.00027373,2]
[379210575,1755189041047,-500.0,0.00027373,2]
[379210577,1755189041056,-650.0,0.00027373,2]
[379210580,1755189041069,-500.0,0.00027373,2]
[379210582,1755189041078,-308.64536307,0.00027373,2]
[379210584,1755189041087,-502.24454179,0.00027373,2]
[379210586,1755189041098,-370.73324084,0.00027373,2]
[379210588,1755189041107,-366.25864031,0.00027373,2]
[379210590,1755189041118,-500.0,0.00027373,2]
[379210592,1755189041128,-500.0,0.00027373,2]
[379210594,1755189041137,-269.96187325,0.00027373,2]
[379210596,1755189041147,-500.0,0.00027373,2]
[379210598,1755189041160,-200.0,0.00027382,2]
[379210600,1755189041171,-506.293533,0.00027387,7]
[379210602,1755189041181,-506.293533,0.00027387,7]
[379210604,1755189041191,-151.0,0.00027387,7]
[379210606,1755189041201,-151.0,0.00027387,7]
[379210608,1755189041211,-151.0,0.00027387,7]
[379210610,1755189041220,-151.0,0.00027387,7]
[379210612,1755189041229,-151.0,0.00027387,7]
[379210614,1755189041242,-695.4719,0.00027387,7]
[379210616,1755189041252,-695.4719,0.00027387,7]
[379210618,1755189041261,-663.90694705,0.00027397,2]
[379210620,1755189041271,-151.0,0.00027397,7]
[379210622,1755189041280,-151.0,0.00027397,7]
[379210624,1755189041290,-272.44121,0.00027397,7]
[379210626,1755189041300,-272.44121,0.00027397,7]
[379210628,1755189041309,-151.0,0.00027397,7]
[379210630,1755189041319,-151.0,0.00027397,7]
[379210632,1755189041329,-151.0,0.00027397,7]
[379210634,1755189041339,-151.0,0.00027397,7]
[379210636,1755189041349,-151.0,0.00027397,7]
[379210638,1755189041360,-151.0,0.00027397,7]
[379210640,1755189041369,-151.0,0.00027397,7]
[379210642,1755189041380,-151.0,0.00027397,7]
[379210644,1755189041390,-151.0,0.00027397,7]
[379210646,1755189041401,-166.548241,0.00027397,2]
[379210648,1755189041410,-202.607993,0.00027397,7]
[379210650,1755189041420,-202.607993,0.00027397,7]
[379210652,1755189041430,-202.607993,0.00027397,7]
[379210654,1755189041440,-202.607993,0.00027397,7]
[379210656,1755189041450,-202.607993,0.00027397,7]
[379210658,1755189041460,-202.607993,0.00027397,7]
[379210660,1755189041469,-158.173566,0.00027397,7]
[379210662,1755189041480,-158.173566,0.00027397,7]
[379210664,1755189041492,-158.173566,0.00027397,7]
[379210666,1755189041502,-151.0,0.00027397,2]
[379210668,1755189041512,-158.173566,0.00027397,7]
[379210670,1755189041521,-158.173566,0.00027397,7]
[379210672,1755189041532,-158.173566,0.00027397,7]
[379210674,1755189041542,-151.0,0.00027397,7]
[379210676,1755189041551,-151.0,0.00027397,7]
[379210678,1755189041561,-151.0,0.00027397,7]
[379210680,1755189041571,-151.0,0.00027397,7]
[379210682,1755189041581,-195.127168,0.00027397,7]
[379210684,1755189041591,-151.0,0.00027397,7]
[379210686,1755189041601,-151.0,0.00027397,7]
[379210688,1755189041610,-151.0,0.00027397,7]
[379210690,1755189041620,-195.127168,0.00027397,7]
[379210693,1755189041630,-4224.486493,0.00027397,7]
[379210694,1755189041640,-4224.486493,0.00027397,7]
[379210696,1755189041649,-151.0,0.00027397,7]
[379210699,1755189041659,-151.0,0.00027397,7]
[379210700,1755189041668,-151.0,0.00027397,7]
[379210702,1755189041677,-151.0,0.00027397,7]
[379210704,1755189041686,-151.0,0.00027397,7]
[379210706,1755189041695,-151.0,0.00027397,7]
[379210708,1755189041704,-153.219032,0.00027397,7]
[379210710,1755189041714,-506.293533,0.00027397,7]
[379210712,1755189041723,-506.293533,0.00027397,7]
[379210714,1755189041732,-506.293533,0.00027397,7]
[379210716,1755189041742,-506.293533,0.00027397,7]
[379210718,1755189041752,-151.0,0.00027397,7]
[379210720,1755189041761,-151.0,0.00027397,7]
[379210722,1755189041771,-151.0,0.00027397,7]
[379210724,1755189041781,-400.0,0.00027397,2]
[379210726,1755189041790,-2150.245572,0.00027397,7]
[379210728,1755189041801,-573.921568,0.00027397,7]
[379210730,1755189041811,-2150.245572,0.00027397,7]
[379210732,1755189041821,-573.921568,0.00027397,7]
[379210734,1755189041830,-1705.64725,0.00027397,7]
[379210736,1755189041840,-1705.64725,0.00027397,7]
[379210738,1755189041850,-1705.64725,0.00027397,7]
[379210740,1755189041859,-1705.64725,0.00027397,7]
[379210742,1755189041869,-469.706089,0.00027397,7]
[379210744,1755189041879,-469.706089,0.00027397,7]
[379210746,1755189041889,-469.706089,0.00027397,7]
[379210748,1755189041898,-469.706089,0.00027397,7]
[379210750,1755189041909,-479.597605,0.00027397,7]
[379210752,1755189041919,-479.597605,0.00027397,7]
[379210754,1755189041929,-479.597605,0.00027397,7]
[379210756,1755189041939,-479.597605,0.00027397,7]
[379210758,1755189041950,-242.98485,0.00027397,7]
[379210760,1755189041959,-242.98485,0.00027397,7]
[379210762,1755189041969,-242.98485,0.00027397,7]
[379210764,1755189041979,-242.98485,0.00027397,7]
[379210766,1755189041988,-242.98485,0.00027397,7]
[379210768,1755189041999,-242.98485,0.00027397,7]
[379210770,1755189042009,-151.0,0.00027397,7]
[379210772,1755189042020,-151.0,0.00027397,7]
[379210774,1755189042029,-151.0,0.00027397,7]
[379210776,1755189042039,-227.692521,0.00027397,7]
[379210778,1755189042049,-262.520962,0.00027397,7]
[379210780,1755189042059,-227.692521,0.00027397,7]
[379210782,1755189042068,-227.692521,0.00027397,7]
[379210784,1755189042078,-227.692521,0.00027397,7]
[379210786,1755189042087,-227.692521,0.00027397,7]
[379210788,1755189042097,-227.692521,0.00027397,7]
[379210790,1755189042107,-151.0,0.00027397,7]
[379210792,1755189042117,-265.622282,0.00027397,7]
[379210794,1755189042127,-151.0,0.00027397,7]
[379210796,1755189042138,-151.0,0.00027397,7]
[379210798,1755189042149,-151.0,0.00027397,7]
[379210800,1755189042162,-151.0,0.00027397,7]
[379210802,1755189042173,-151.0,0.00027397,7]
[379210804,1755189042183,-151.0,0.00027397,7]
[379210806,1755189042193,-151.0,0.00027397,7]
[379210808,1755189042205,-151.0,0.00027397,7]
[379210810,1755189042216,-151.0,0.00027397,7]
[379210812,1755189042225,-151.0,0.00027397,7]
[379210814,1755189042238,-151.0,0.00027397,7]
[379210816,1755189042250,-400.0,0.00027397,2]
[379210818,1755189042261,-654.15,0.00027397,2]
[379210820,1755189042270,-400.0,0.00027397,2]
[379210822,1755189042280,-2053.58,0.00027397,2]
[379210824,1755189042291,-817.06,0.00027397,2]
[379210826,1755189042301,-400.0,0.00027397,2]
[379210828,1755189042311,-400.0,0.00027397,2]
[379210830,1755189042324,-1013.15,0.00027397,2]
[379210832,1755189042334,-1573.22,0.00027397,2]
[379210834,1755189042344,-739.06,0.00027397,2]
[379210836,1755189042355,-400.0,0.00027397,2]
[379210870,1755189042676,-840.56,0.00027397,2]
[379210872,1755189042686,-3338.22,0.00027397,2]
[379210874,1755189042697,-200.0,0.00027397,2]
[379210876,1755189042707,-200.0,0.00027397,2]
[379210878,1755189042717,-1978.77,0.00027397,2]
[379210880,1755189042726,-1231.563253,0.00027397,7]
[379210882,1755189042736,-1231.563253,0.00027397,7]
[379210884,1755189042747,-1231.563253,0.00027397,7]
[379210888,1755189042757,-1231.563253,0.00027397,7]
[379210890,1755189042766,-1231.563253,0.00027397,7]
[379210892,1755189042776,-1231.563253,0.00027397,7]
[379210894,1755189042786,-400.0,0.00027397,2]
[379210896,1755189042796,-527.77,0.00027397,2]
[379210898,1755189042806,-151.0,0.00027397,7]
[379210900,1755189042815,-151.0,0.00027397,7]
[379210901,1755189042826,-151.0,0.00027397,7]
[379210904,1755189042836,-609.37,0.00027397,2]
[379210906,1755189042845,-1738.969706,0.00027397,7]
[379210910,1755189042855,-1738.969706,0.00027397,7]
[379210912,1755189042865,-1738.969706,0.00027397,7]
[379210914,1755189042876,-400.0,0.00027397,2]
[379210916,1755189042885,-1738.969706,0.00027397,7]
[379210918,1755189042895,-400.0,0.00027397,2]
[379210920,1755189042905,-400.0,0.00027397,2]
[379210922,1755189042914,-504.72,0.00027397,2]
[379210924,1755189042926,-1738.969706,0.00027397,7]
[379210926,1755189042938,-1738.969706,0.00027397,7]
[379210929,1755189042949,-400.0,0.00027397,2]
[379210931,1755189042960,-466.271793,0.00027397,7]
[379210933,1755189042971,-466.271793,0.00027397,7]
[379210935,1755189042982,-466.271793,0.00027397,7]
[379210937,1755189042998,-466.271793,0.00027397,7]
[379210939,1755189043009,-466.271793,0.00027397,7]
[379210941,1755189043020,-466.271793,0.00027397,7]
[379210943,1755189043031,-400.0,0.00027397,2]
[379210945,1755189043043,-151.0,0.00027397,7]
[379210947,1755189043054,-151.0,0.00027397,7]
[379210949,1755189043065,-151.0,0.00027397,7]
[379210951,1755189043075,-853.88,0.00027397,2]
[379210953,1755189043087,-400.530732,0.00027397,7]
[379210955,1755189043098,-400.530732,0.00027397,7]
[379210957,1755189043109,-400.530732,0.00027397,7]
[379210959,1755189043119,-400.0,0.00027397,2]
[379210961,1755189043130,-400.530732,0.00027397,7]
[379210963,1755189043142,-1191.01,0.00027397,2]
[379210965,1755189043155,-400.530732,0.00027397,7]
[379210967,1755189043168,-400.530732,0.00027397,7]
[379210969,1755189043179,-1768.305064,0.00027397,7]
[379210971,1755189043189,-400.0,0.00027397,2]
[379210973,1755189043201,-1768.305064,0.00027397,7]
[379210975,1755189043212,-1768.305064,0.00027397,7]
[379210977,1755189043222,-400.0,0.00027397,2]
[379210979,1755189043232,-1768.305064,0.00027397,7]
[379210981,1755189043246,-1768.305064,0.00027397,7]
[379210983,1755189043258,-1768.305064,0.00027397,7]
[379210985,1755189043269,-201.396268,0.00027397,7]
[379210988,1755189043280,-201.396268,0.00027397,7]
[379210991,1755189043290,-201.396268,0.00027397,7]
[379210993,1755189043301,-1066.24,0.00027397,2]
[379210995,1755189043311,-201.396268,0.00027397,7]
[379210997,1755189043321,-201.396268,0.00027397,7]
[379210999,1755189043331,-201.396268,0.00027397,7]
[379211001,1755189043342,-400.0,0.00027397,2]
[379211003,1755189043352,-400.0,0.00027397,2]
[379211005,1755189043362,-1569.25,0.00027397,2]
[379211007,1755189043372,-400.0,0.00027397,2]
[379211010,1755189043384,-2293.3,0.00027397,2]
[379211012,1755189043394,-400.0,0.00027397,2]
[379211014,1755189043404,-912.54,0.00027397,2]
[379211015,1755189043414,-151.0,0.00027397,7]
[379211017,1755189043428,-1237.07,0.00027397,2]
[379211019,1755189043440,-400.0,0.00027397,2]
[379211021,1755189043452,-400.0,0.00027397,2]
[379211023,1755189043469,-156.446099,0.00027397,7]
[379211026,1755189043480,-156.446099,0.00027397,7]
[379211028,1755189043489,-1704.87,0.00027397,2]
[379211030,1755189043504,-402.0772658,0.00027397,2]
[379211032,1755189043516,-400.0,0.00027397,2]
[379211034,1755189043525,-1531.571028,0.00027397,7]
[379211036,1755189043536,-1531.571028,0.00027397,7]
[379211038,1755189043545,-1531.571028,0.00027397,7]
[379211040,1755189043556,-1531.571028,0.00027397,7]
[379211042,1755189043565,-400.0,0.00027397,2]
[379211044,1755189043575,-1531.571028,0.00027397,7]
[379211046,1755189043586,-1531.571028,0.00027397,7]
[379211048,1755189043595,-410.99,0.00027397,2]
[379211050,1755189043605,-400.0,0.00027397,2]
[379211052,1755189043615,-400.57529044,0.00027397,2]
[379211054,1755189043625,-402.31106786,0.00027397,2]
[379211056,1755189043635,-486.99214968,0.00027397,2]
[379211058,1755189043645,-529.85581772,0.00027397,2]
[379211060,1755189043654,-822.87,0.00027397,2]
[379211062,1755189043664,-151.0,0.00027397,7]
[379211064,1755189043674,-400.0,0.00027397,2]
[379211066,1755189043683,-400.0,0.00027397,2]
[379211068,1755189043693,-1149.9,0.00027397,2]
[379211070,1755189043703,-400.0,0.00027397,2]
[379211072,1755189043713,-500.0,0.00027397,2]
[379211075,1755189043722,-400.0,0.00027397,2]
[379211077,1755189043733,-400.0,0.00027397,2]
[379211079,1755189043748,-400.0,0.00027397,2]
[379211081,1755189043757,-1261.51,0.00027397,2]
[379211083,1755189043767,-151.0,0.00027397,7]
[379211085,1755189043777,-400.0,0.00027397,2]
[379211088,1755189043788,-400.0,0.00027397,2]
[379211090,1755189043797,-387.881337,0.00027397,7]
[379211092,1755189043807,-387.881337,0.00027397,7]
[379211094,1755189043817,-400.0,0.00027397,2]
[379211096,1755189043826,-387.881337,0.00027397,7]
[379211097,1755189043836,-1381.96,0.00027397,2]
[379211099,1755189043846,-387.881337,0.00027397,7]
[379211102,1755189043856,-400.0,0.00027397,2]
[379211103,1755189043866,-400.0,0.00027397,2]
[379211106,1755189043876,-400.0,0.00027397,2]